fUST/lending_fUST_20251117
["ID","MTS","AMOUNT","RATE_DAILY","PERIOD"]
[394215096,1763385041821,-300.0,0.00021918,2]
[394215098,1763385041830,-150.0,0.00021918,2]
[394215100,1763385041839,-1160.0,0.00021959,2]
[394215102,1763385041849,-540.68,0.00022,14]
[394215104,1763385041858,-484.98,0.00022,7]
[394215106,1763385041868,-5843.02820072,0.0002203,2]
[394215108,1763385041877,-25434.24,0.000223,7]
[394215111,1763385041887,-1135.24857012,0.00022452,2]
[394215113,1763385041897,-300.0,0.00022466,2]
[394215114,1763385041906,-1260.0,0.00022507,2]
[394215116,1763385041916,-1000.0,0.00022597,20]
[394215119,1763385041925,-492.0,0.00022597,20]
[394215120,1763385041935,-701.53166973,0.0002274,2]
[394215123,1763385041944,-2000.0,0.00022999,7]
[394215125,1763385041954,-500.0,0.00023013,2]
[394215127,1763385041963,-450.0,0.00023014,2]
[394215129,1763385041972,-725.19814475,0.00023055,2]
[394215131,1763385041982,-2258.0,0.00023645,2]
[394215133,1763385041992,-348.00656571,0.00023652,2]
[394215135,1763385042001,-3654.65690131,0.00023658,2]
[394215137,1763385042010,-5705.49399235,0.00023949,2]
[394215139,1763385042020,-3654.65690131,0.00024029,2]
[394215141,1763385042029,-166.91346626,0.00024056,2]
[394215143,1763385042038,-667.65386503,0.00024056,2]
[394215145,1763385042047,-1502.22119633,0.00024056,2]
[394215147,1763385042058,-500.0,0.00024109,2]
[394215149,1763385042067,-1135.24857012,0.00024142,2]
[394215151,1763385042077,-160.0,0.00024179,2]
[394215160,1763385042154,-400.67432439,0.00024179,2]
[394215162,1763385042164,-3654.65690131,0.00024183,2]
[394215164,1763385042173,-166.46662109,0.00024299,2]
[394215166,1763385042181,-160.0,0.00024306,2]
[394215168,1763385042190,-168.0,0.00024375,2]
[394215169,1763385042200,-168.0,0.00024402,2]
[394215172,1763385042211,-168.0,0.0002445,2]
[394215174,1763385042220,-3654.65690131,0.00024512,2]
[394215176,1763385042231,-2000.0,0.00024587,7]
[394215178,1763385042240,-574.75499537,0.000246,21]
[394215180,1763385042251,-2197.50918911,0.00024637,2]
[394215182,1763385042261,-168.0,0.00024645,2]
[394215184,1763385042272,-168.0,0.00024701,2]
[394215186,1763385042281,-168.0,0.00024717,2]
[394215188,1763385042291,-400.67432439,0.00024798,7]
[394215190,1763385042300,-219.07557551,0.000248,2]
[394215192,1763385042309,-876.30230203,0.000248,2]
[394215194,1763385042317,-12962.04999538,0.000248,2]
[394215196,1763385042327,-5843.02820072,0.00024824,2]
[394215198,1763385042335,-1000.0,0.00024857,20]
[394215200,1763385042345,-791.0,0.00024857,20]
[394215201,1763385042354,-37492.9167586,0.00024898,2]
[394215202,1763385042364,-2167.7983296,0.00024898,2]
[394215203,1763385042374,-540.68,0.000249,14]
[394215204,1763385042383,-151.0,0.000249,7]
[394215205,1763385042394,-151.0,0.000249,7]
[394215206,1763385042403,-151.0,0.000249,7]
[394215207,1763385042412,-151.0,0.000249,7]
[394215208,1763385042422,-151.0,0.000249,7]
[394215209,1763385042431,-151.0,0.000249,7]
[394215210,1763385042441,-151.0,0.000249,7]
[394215211,1763385042451,-151.0,0.000249,7]
[394215212,1763385042461,-570.603194,0.000249,7]
[394215213,1763385042471,-570.603194,0.000249,7]
[394215214,1763385042481,-570.603194,0.000249,7]
[394215215,1763385042491,-570.603194,0.000249,7]
[394215216,1763385042500,-261.050478,0.000249,2]
[394215217,1763385042509,-151.0,0.000249,7]
[394215218,1763385042519,-151.0,0.000249,7]
[394215219,1763385042528,-151.0,0.000249,7]
[394215220,1763385042538,-151.0,0.000249,7]
[394215221,1763385042548,-151.0,0.000249,7]
[394215222,1763385042557,-155.189006,0.000249,7]
[394215223,1763385042567,-2315.228455,0.000249,7]
[394215225,1763385042576,-2315.228455,0.000249,7]
[394215226,1763385042585,-2315.228455,0.000249,7]
[394215227,1763385042598,-2315.228455,0.000249,7]
[394215229,1763385042607,-345.07192,0.000249,7]
[394215231,1763385042617,-345.07192,0.000249,7]
[394215233,1763385042626,-345.07192,0.000249,7]
[394215235,1763385042637,-345.07192,0.000249,7]
[394215237,1763385042646,-953.07101542,0.000249,2]
[394215239,1763385042657,-577.755337,0.000249,2]
[394215241,1763385042668,-577.755337,0.000249,2]
[394215243,1763385042678,-577.755337,0.000249,2]
[394215245,1763385042687,-577.755337,0.000249,2]
[394215247,1763385042698,-159.828821,0.000249,7]
[394215249,1763385042707,-159.828821,0.000249,7]
[394215251,1763385042717,-159.828821,0.000249,7]
[394215253,1763385042727,-159.828821,0.000249,7]
[394215255,1763385042737,-151.0,0.000249,7]
[394215258,1763385042747,-151.0,0.000249,7]
[394215260,1763385042756,-151.0,0.000249,7]
[394215263,1763385042765,-151.056285,0.000249,7]
[394215266,1763385042775,-151.056285,0.000249,7]
[394215269,1763385042784,-151.056285,0.000249,7]
[394215271,1763385042794,-151.056285,0.000249,7]
[394215273,1763385042804,-692135.888748,0.000249,2]
[394215275,1763385042813,-151.0,0.000249,7]
[394215277,1763385042823,-151.0,0.000249,7]
[394215279,1763385042832,-151.0,0.000249,7]
[394215281,1763385042842,-151.0,0.000249,7]
[394215283,1763385042851,-151.0,0.000249,7]
[394215285,1763385042860,-1969.70849938,0.00024923,2]
[394215287,1763385042870,-27724.14174265,0.00025,5]
[394215289,1763385042879,-214.46937146,0.00025,2]
[394215291,1763385042889,-2553.0,0.00025,2]
[394215293,1763385042898,-168.0,0.00025065,2]
[394215295,1763385042908,-168.0,0.00025099,2]
[394215297,1763385042917,-484.98,0.000251,7]
[394215299,1763385042927,-168.0,0.00025101,2]
[394215301,1763385042936,-168.0,0.0002512,2]
[394215303,1763385042945,-377.93000014,0.00025144,2]
[394215305,1763385042955,-389.4761497,0.00025144,2]
[394215307,1763385042965,-1556.34669421,0.00025144,2]
[394215309,1763385042975,-168.0,0.00025157,2]
[394215311,1763385042985,-168.0,0.00025178,2]
[394215313,1763385042994,-500.0,0.00025205,2]
[394215315,1763385043003,-168.0,0.00025205,2]
[394215317,1763385043013,-5000.0,0.00025356,2]
[394215320,1763385043022,-168.0,0.00025565,2]
[394215323,1763385043031,-168.0,0.00025569,2]
[394215326,1763385043040,-380.97560877,0.00025652,2]
[394215329,1763385043049,-168.0,0.00025707,2]
[394215332,1763385043058,-153.90642107,0.00025726,2]
[394215335,1763385043067,-166.46662109,0.00025817,2]
[394215338,1763385043077,-1136.38381869,0.00025831,2]
[394215341,1763385043087,-745.0,0.00025914,2]
[394215344,1763385043095,-168.0,0.00026109,2]
[394215347,1763385043105,-2000.0,0.00026175,7]
[394215349,1763385043114,-25434.24,0.000262,7]
[394215351,1763385043124,-168.0,0.00026212,2]
[394215353,1763385043134,-168.0,0.00026289,2]
[394215355,1763385043143,-500.0,0.00026301,2]
[394215357,1763385043152,-264.94348769,0.00026468,5]
[394215359,1763385043161,-336.6606,0.00026468,5]
[394215362,1763385043170,-1058.71417682,0.00026468,5]
[394215364,1763385043180,-1345.2957576,0.00026468,5]
[394215367,1763385043189,-219.93303789,0.00026468,5]
[394215369,1763385043200,-163.0,0.000265,7]
[394215371,1763385043209,-153.90642107,0.00026505,56]
[394215373,1763385043219,-878.85241942,0.00026528,5]
[394215375,1763385043228,-168.0,0.00026594,2]
[394215377,1763385043238,-709.487491,0.00026676,2]
[394215379,1763385043247,-540.68,0.000271,14]
[394215381,1763385043257,-484.98,0.000271,7]
[394215383,1763385043266,-1013.3546122,0.00027123,3]
[394215385,1763385043277,-2717.26102874,0.0002727,2]
[394215387,1763385043286,-153.90642107,0.00027285,110]
[394215389,1763385043295,-166.46662109,0.00027336,2]
[394215391,1763385043305,-1000.0,0.00027343,30]
[394215393,1763385043314,-1000.0,0.00027343,30]
[394215395,1763385043323,-400.67432439,0.00027397,7]
[394215397,1763385043331,-500.0,0.00027397,2]
[394215399,1763385043340,-4266.01,0.00027397,7]
[394215401,1763385043350,-151.0,0.00027397,7]
[394215403,1763385043359,-151.0,0.00027397,7]
[394215405,1763385043368,-151.0,0.00027397,7]
[394215407,1763385043377,-151.0,0.00027397,7]
[394215409,1763385043386,-151.0,0.00027397,7]
[394215411,1763385043395,-151.0,0.00027397,7]
[394215413,1763385043404,-151.0,0.00027397,7]
[394215415,1763385043413,-151.0,0.00027397,7]
[394215417,1763385043422,-151.0,0.00027397,7]
[394215419,1763385043431,-151.0,0.00027397,7]
[394215421,1763385043441,-156.475356,0.00027397,7]
[394215423,1763385043452,-151.0,0.00027397,7]
[394215425,1763385043461,-151.0,0.00027397,7]
[394215427,1763385043471,-166.567019,0.00027397,7]
[394215429,1763385043481,-151.0,0.00027397,7]
[394215431,1763385043490,-151.0,0.00027397,7]
[394215433,1763385043499,-151.0,0.00027397,7]
[394215435,1763385043508,-151.0,0.00027397,7]
[394215437,1763385043517,-151.0,0.00027397,7]
[394215439,1763385043527,-151.0,0.00027397,7]
[394215441,1763385043536,-151.0,0.00027397,7]
[394215443,1763385043546,-151.0,0.00027397,7]
[394215445,1763385043555,-151.0,0.00027397,7]
[394215447,1763385043564,-151.0,0.00027397,7]
[394215449,1763385043574,-151.0,0.00027397,7]
[394215451,1763385043584,-151.0,0.00027397,7]
[394215453,1763385043597,-151.0,0.00027397,7]
[394215462,1763385043672,-151.0,0.00027397,7]
[394215464,1763385043683,-151.0,0.00027397,7]
[394215466,1763385043692,-151.0,0.00027397,7]
[394215468,1763385043703,-151.0,0.00027397,7]
[394215470,1763385043714,-151.0,0.00027397,7]
[394215472,1763385043723,-151.0,0.00027397,7]
[394215474,1763385043732,-151.0,0.00027397,7]
[394215476,1763385043742,-151.0,0.00027397,7]
[394215478,1763385043751,-151.0,0.00027397,7]
[394215480,1763385043760,-151.0,0.00027397,7]
[394215482,1763385043770,-151.0,0.00027397,7]
[394215484,1763385043779,-690.517772,0.00027397,7]
[394215486,1763385043796,-151.0,0.00027397,7]
[394215488,1763385043806,-690.517772,0.00027397,7]
[394215490,1763385043815,-217.390544,0.00027397,7]
[394215492,1763385043825,-690.517772,0.00027397,7]
[394215494,1763385043835,-151.0,0.00027397,7]
[394215496,1763385043844,-690.517772,0.00027397,7]
[394215498,1763385043853,-217.390544,0.00027397,7]
[394215500,1763385043863,-217.390544,0.00027397,7]
[394215502,1763385043872,-151.0,0.00027397,7]
[394215504,1763385043882,-217.390544,0.00027397,7]
[394215506,1763385043892,-151.0,0.00027397,7]
[394215508,1763385043901,-151.0,0.00027397,7]
[394215510,1763385043911,-253.168921,0.00027397,7]
[394215512,1763385043922,-240.0,0.00027397,7]
[394215514,1763385043931,-240.0,0.00027397,7]
[394215516,1763385043941,-240.0,0.00027397,7]
[394215518,1763385043953,-240.0,0.00027397,7]
[394215520,1763385043962,-151.0,0.00027397,7]
[394215522,1763385043971,-151.0,0.00027397,7]
[394215524,1763385043980,-151.0,0.00027397,7]
[394215526,1763385043990,-151.0,0.00027397,7]
[394215528,1763385043999,-151.0,0.00027397,7]
[394215530,1763385044008,-151.0,0.00027397,7]
[394215532,1763385044018,-151.0,0.00027397,7]
[394215534,1763385044027,-151.0,0.00027397,7]
[394215536,1763385044035,-151.0,0.00027397,7]
[394215538,1763385044045,-151.0,0.00027397,7]
[394215541,1763385044054,-151.0,0.00027397,7]
[394215544,1763385044063,-151.0,0.00027397,7]
[394215546,1763385044072,-151.0,0.00027397,7]
[394215548,1763385044081,-151.0,0.00027397,7]
[394215550,1763385044091,-151.0,0.00027397,7]
[394215552,1763385044101,-238.818023,0.00027397,7]
[394215554,1763385044110,-292.372,0.00027397,7]
[394215556,1763385044119,-263.634693,0.00027397,7]
[394215558,1763385044128,-292.372,0.00027397,7]
[394215560,1763385044138,-263.634693,0.00027397,7]
[394215562,1763385044147,-292.372,0.00027397,7]
[394215564,1763385044156,-263.634693,0.00027397,7]
[394215566,1763385044165,-292.372,0.00027397,7]
[394215568,1763385044175,-263.634693,0.00027397,7]
[394215570,1763385044184,-300.260538,0.00027397,7]
[394215572,1763385044194,-151.0,0.00027397,7]
[394215574,1763385044204,-151.0,0.00027397,7]
[394215576,1763385044213,-151.0,0.00027397,7]
[394215578,1763385044223,-480.286239,0.00027397,7]
[394215580,1763385044232,-480.286239,0.00027397,7]
[394215582,1763385044241,-480.286239,0.00027397,7]
[394215584,1763385044250,-157.611051,0.00027397,7]
[394215586,1763385044259,-480.286239,0.00027397,7]
[394215588,1763385044268,-151.0,0.00027397,7]
[394215590,1763385044277,-151.0,0.00027397,7]
[394215591,1763385044286,-151.0,0.00027397,7]
[394215593,1763385044295,-151.0,0.00027397,7]
[394215595,1763385044304,-151.0,0.00027397,7]
[394215597,1763385044313,-151.0,0.00027397,7]
[394215599,1763385044322,-151.0,0.00027397,7]
[394215601,1763385044331,-271.274429,0.00027397,7]
[394215603,1763385044340,-245.603188,0.00027397,7]
[394215605,1763385044348,-245.603188,0.00027397,7]
[394215607,1763385044358,-245.603188,0.00027397,7]
[394215609,1763385044367,-245.603188,0.00027397,7]
[394215611,1763385044376,-151.0,0.00027397,7]
[394215613,1763385044385,-151.0,0.00027397,7]
[394215614,1763385044394,-151.0,0.00027397,7]
[394215615,1763385044403,-151.0,0.00027397,7]
[394215616,1763385044412,-151.0,0.00027397,7]
[394215617,1763385044421,-151.0,0.00027397,7]
[394215618,1763385044430,-340.394687,0.00027397,7]
[394215619,1763385044439,-340.394687,0.00027397,7]
[394215620,1763385044451,-340.394687,0.00027397,7]
[394215621,1763385044460,-340.394687,0.00027397,7]
[394215622,1763385044469,-151.0,0.00027397,7]
[394215623,1763385044479,-584.750061,0.00027397,7]
[394215624,1763385044488,-584.750061,0.00027397,7]
[394215625,1763385044498,-584.750061,0.00027397,7]
[394215626,1763385044507,-584.750061,0.00027397,7]
[394215627,1763385044516,-151.0,0.00027397,7]
[394215628,1763385044526,-157.39573,0.00027397,7]
[394215629,1763385044535,-151.0,0.00027397,7]
[394215630,1763385044544,-151.0,0.00027397,7]
[394215631,1763385044553,-157.39573,0.00027397,7]
[394215632,1763385044562,-157.39573,0.00027397,7]
[394215633,1763385044571,-151.0,0.00027397,7]
[394215634,1763385044581,-157.39573,0.00027397,7]
[394215635,1763385044593,-151.0,0.00027397,7]
[394215636,1763385044603,-151.0,0.00027397,7]
[394215637,1763385044612,-151.0,0.00027397,7]
[394215638,1763385044624,-151.0,0.00027397,7]
[394215639,1763385044638,-151.0,0.00027397,7]
[394215640,1763385044659,-151.0,0.00027397,7]
[394215641,1763385044672,-151.0,0.00027397,7]
[394215642,1763385044682,-166.288717,0.00027397,7]
[394215643,1763385044691,-151.0,0.00027397,7]
[394215644,1763385044704,-151.0,0.00027397,7]
[394215645,1763385044713,-151.0,0.00027397,7]
[394215646,1763385044722,-151.0,0.00027397,7]
[394215647,1763385044731,-194.32699,0.00027397,7]
[394215648,1763385044741,-194.32699,0.00027397,7]
[394215649,1763385044750,-194.32699,0.00027397,7]
[394215650,1763385044760,-151.0,0.00027397,7]
[394215651,1763385044770,-194.32699,0.00027397,7]
[394215652,1763385044779,-151.0,0.00027397,7]
[394215653,1763385044788,-151.0,0.00027397,7]
[394215654,1763385044797,-151.0,0.00027397,7]
[394215655,1763385044806,-283.111692,0.00027397,7]
[394215656,1763385044816,-151.0,0.00027397,7]
[394215657,1763385044825,-283.111692,0.00027397,7]
[394215658,1763385044834,-283.111692,0.00027397,7]
[394215659,1763385044844,-160.996517,0.00027397,7]
[394215660,1763385044854,-283.111692,0.00027397,7]
[394215661,1763385044863,-218.836816,0.00027397,7]
[394215662,1763385044872,-218.836816,0.00027397,7]
[394215663,1763385044882,-218.836816,0.00027397,7]
[394215664,1763385044891,-204.718977,0.00027397,7]
[394215665,1763385044900,-208.906996,0.00027397,7]
[394215666,1763385044909,-218.836816,0.00027397,7]
[394215667,1763385044919,-208.906996,0.00027397,7]
[394215668,1763385044928,-151.0,0.00027397,7]
[394215669,1763385044937,-208.906996,0.00027397,7]
[394215670,1763385044947,-208.906996,0.00027397,7]
[394215671,1763385044957,-204.718977,0.00027397,7]
[394215672,1763385044966,-204.718977,0.00027397,7]
[394215673,1763385044974,-204.718977,0.00027397,7]
[394215674,1763385044983,-151.0,0.00027397,7]
[394215675,1763385044992,-151.0,0.00027397,7]
[394215676,1763385045002,-151.0,0.00027397,7]
[394215677,1763385045011,-151.0,0.00027397,7]
[394215678,1763385045080,-151.0,0.00027397,7]
[394215679,1763385045089,-151.0,0.00027397,7]
[394215680,1763385045099,-151.0,0.00027397,7]
[394215681,1763385045108,-151.0,0.00027397,7]
[394215682,1763385045117,-151.0,0.00027397,7]
[394215683,1763385045126,-151.0,0.00027397,7]
[394215684,1763385045135,-151.0,0.00027397,7]
[394215685,1763385045145,-151.0,0.00027397,7]
[394215686,1763385045154,-151.0,0.00027397,7]
[394215687,1763385045163,-151.0,0.00027397,7]
[394215688,1763385045172,-151.0,0.00027397,7]
[394215689,1763385045181,-151.0,0.00027397,7]
[394215690,1763385045191,-151.0,0.00027397,7]
[394215691,1763385045202,-151.0,0.00027397,7]
[394215692,1763385045222,-1767.917547,0.00027397,7]
[394215693,1763385045231,-151.0,0.00027397,7]
[394215694,1763385045241,-1767.917547,0.00027397,7]
[394215695,1763385045251,-151.0,0.00027397,7]
[394215696,1763385045260,-1767.917547,0.00027397,7]
[394215697,1763385045271,-362.646309,0.00027397,7]
[394215698,1763385045280,-151.0,0.00027397,7]
[394215699,1763385045290,-151.0,0.00027397,7]
[394215700,1763385045299,-1767.917547,0.00027397,7]
[394215701,1763385045309,-362.646309,0.00027397,7]
[394215702,1763385045318,-362.646309,0.00027397,7]
[394215703,1763385045328,-362.646309,0.00027397,7]
[394215704,1763385045337,-151.0,0.00027397,7]
[394215705,1763385045346,-151.0,0.00027397,7]
[394215706,1763385045355,-151.0,0.00027397,7]
[394215707,1763385045364,-239.958412,0.00027397,7]
[394215708,1763385045375,-267.494187,0.00027397,7]
[394215709,1763385045385,-151.0,0.00027397,7]
[394215710,1763385045395,-151.0,0.00027397,7]
[394215711,1763385045405,-3200.621189,0.00027397,7]
[394215713,1763385045414,-151.0,0.00027397,7]
[394215715,1763385045423,-3200.621189,0.00027397,7]
[394215716,1763385045432,-151.0,0.00027397,7]
[394215717,1763385045441,-151.0,0.00027397,7]
[394215718,1763385045452,-3200.621189,0.00027397,7]
[394215719,1763385045462,-3200.621189,0.00027397,7]
[394215720,1763385045472,-1641.26,0.000274,2]
[394215721,1763385045481,-413.94465184,0.00027652,2]
[394215722,1763385045490,-37492.9167586,0.00027692,2]
[394215723,1763385045499,-2167.7983296,0.00027698,2]
[394215724,1763385045509,-2000.0,0.00027764,7]
[394215725,1763385045518,-253.89987463,0.00028493,2]
[394215726,1763385045527,-766.0689,0.000285,7]
[394215727,1763385045536,-166.46662109,0.00028854,2]
[394215728,1763385045546,-25434.24,0.000289,7]
[394215729,1763385045555,-261.050478,0.000289,7]
[394215730,1763385045564,-12238.90393586,0.00029,14]
[394215731,1763385045574,-5705.49399235,0.000291,2]
[394215732,1763385045584,-193.198,0.0002925,2]
[394215733,1763385045598,-150.154,0.0002925,2]
[394215734,1763385045607,-150.116,0.0002925,2]
[394215735,1763385045617,-250.0,0.0002925,2]
[394215736,1763385045626,-232.688,0.0002926,2]
[394215737,1763385045637,-265.616,0.0002926,2]
[394215738,1763385045647,-988.0,0.0002926,2]
[394215739,1763385045656,-629.0,0.0002926,2]
[394215740,1763385045667,-2150.0,0.0002926,2]
[394215741,1763385045677,-2000.0,0.00029352,7]
[394215742,1763385045687,-446.91369491,0.00029652,2]
[394215743,1763385045696,-5000.0,0.00029689,2]
[394215744,1763385045706,-484.98,0.000298,7]
[394215745,1763385045716,-190.55257422,0.00029863,36]
[394215746,1763385045725,-1641.26,0.000299,2]
[394215747,1763385045735,-540.68,0.000299,14]
[394215748,1763385045744,-25000.0,0.0003,3]
[394215749,1763385045754,-400.67432439,0.0003,3]
[394215750,1763385045763,-1072.16,0.0003,30]
[394215751,1763385045773,-1000.0,0.00030077,30]
[394215752,1763385045783,-1000.0,0.00030077,30]
[394215753,1763385045792,-579.0,0.00030077,30]
[394215754,1763385045802,-261.050478,0.0003008,7]
[394215755,1763385045811,-254.023948,0.0003011,30]
[394215756,1763385045822,-287.07056848,0.0003013,2]
[394215757,1763385045831,-1072.16,0.0003018,30]
[394215758,1763385045840,-674.29049269,0.0003022,2]
[394215759,1763385045849,-1072.16,0.0003036,30]
[394215760,1763385045859,-166.46662109,0.00030373,2]
[394215761,1763385045868,-151.0,0.00030486,30]
[394215762,1763385045877,-151.0,0.00030486,31]
[394215763,1763385045886,-151.0,0.00030486,31]
[394215764,1763385045895,-151.0,0.00030486,31]
[394215765,1763385045904,-263.22579,0.00030486,31]
[394215766,1763385045913,-151.0,0.00030486,31]
[394215767,1763385045923,-151.0,0.00030486,31]
[394215768,1763385045932,-196.147932,0.00030486,31]
[394215769,1763385045941,-196.147932,0.00030486,31]
[394215770,1763385045952,-196.147932,0.00030486,31]
[394215771,1763385045961,-196.147932,0.00030486,31]
[394215772,1763385045971,-151.0,0.00030486,31]
[394215773,1763385045980,-151.0,0.00030486,31]
[394215774,1763385045989,-151.0,0.00030486,31]
[394215775,1763385045998,-151.0,0.00030486,31]
[394215777,1763385046007,-151.0,0.00030486,31]
[394215778,1763385046016,-151.0,0.00030486,31]
[394215779,1763385046025,-151.0,0.00030486,31]
[394215780,1763385046035,-151.0,0.00030486,31]
[394215781,1763385046044,-151.0,0.00030486,31]
[394215783,1763385046053,-151.0,0.00030486,31]
[394215784,1763385046062,-151.0,0.00030486,31]
[394215785,1763385046071,-151.0,0.00030486,7]
[394215786,1763385046080,-151.0,0.00030486,31]
[394215787,1763385046090,-151.0,0.00030486,31]
[394215788,1763385046099,-151.0,0.00030486,31]
[394215789,1763385046108,-151.0,0.00030486,31]
[394215790,1763385046118,-151.0,0.00030486,31]
[394215791,1763385046128,-151.0,0.00030486,31]
[394215792,1763385046137,-151.0,0.00030486,31]
[394215793,1763385046147,-151.0,0.00030486,31]
[394215794,1763385046156,-151.0,0.00030486,31]
[394215795,1763385046165,-159.234346,0.00030486,31]
[394215796,1763385046174,-151.0,0.00030486,31]
[394215797,1763385046183,-159.413877,0.00030486,31]
[394215798,1763385046192,-151.0,0.00030486,31]
[394215799,1763385046203,-151.0,0.00030486,31]
[394215800,1763385046212,-151.0,0.00030486,31]
[394215801,1763385046222,-151.0,0.00030486,31]
[394215802,1763385046231,-151.0,0.00030486,31]
[394215803,1763385046240,-235.65331,0.00030486,31]
[394215804,1763385046250,-151.0,0.00030486,31]
[394215805,1763385046258,-151.0,0.00030486,31]
[394215806,1763385046268,-160.028405,0.00030486,31]
[394215807,1763385046277,-151.0,0.00030486,31]
[394215808,1763385046286,-151.0,0.00030486,31]
[394215809,1763385046296,-151.0,0.00030486,31]
[394215810,1763385046359,-151.0,0.00030486,31]
[394215811,1763385046374,-151.0,0.00030486,31]
[394215812,1763385046383,-151.0,0.00030486,31]
[394215813,1763385046392,-151.0,0.00030486,31]
[394215814,1763385046402,-151.0,0.00030486,31]
[394215815,1763385046411,-151.0,0.00030486,31]
[394215816,1763385046420,-570.603194,0.00030486,31]
[394215817,1763385046430,-570.603194,0.00030486,31]
[394215818,1763385046440,-570.603194,0.00030486,31]
[394215819,1763385046450,-570.603194,0.00030486,31]
[394215820,1763385046459,-151.0,0.00030486,31]
[394215821,1763385046469,-151.0,0.00030486,31]
[394215822,1763385046478,-165.716723,0.00030486,31]
[394215823,1763385046487,-690.517772,0.00030486,31]
[394215824,1763385046496,-151.0,0.00030486,31]
[394215825,1763385046506,-690.517772,0.00030486,31]
[394215826,1763385046515,-217.390544,0.00030486,31]
[394215827,1763385046525,-690.517772,0.00030486,31]
[394215828,1763385046535,-690.517772,0.00030486,31]
[394215829,1763385046544,-217.390544,0.00030486,31]
[394215830,1763385046553,-217.390544,0.00030486,31]
[394215831,1763385046563,-151.0,0.00030486,31]
[394215832,1763385046572,-217.390544,0.00030486,31]
[394215833,1763385046581,-151.0,0.00030486,31]
[394215834,1763385046592,-151.0,0.00030486,31]
[394215835,1763385046601,-151.0,0.00030486,31]
[394215836,1763385046610,-151.0,0.00030486,31]
[394215837,1763385046620,-151.0,0.00030486,31]
[394215838,1763385046629,-240.0,0.00030486,31]
[394215839,1763385046639,-240.0,0.00030486,31]
[394215840,1763385046649,-240.0,0.00030486,31]
[394215841,1763385046658,-240.0,0.00030486,31]
[394215842,1763385046670,-151.0,0.00030486,31]
[394215843,1763385046679,-151.0,0.00030486,31]
[394215844,1763385046688,-151.0,0.00030486,31]
[394215845,1763385046698,-151.0,0.00030486,31]
[394215846,1763385046707,-151.0,0.00030486,31]
[394215847,1763385046717,-151.0,0.00030486,31]
[394215848,1763385046726,-151.0,0.00030486,31]
[394215849,1763385046735,-151.0,0.00030486,31]
[394215850,1763385046745,-256.548932,0.00030486,31]
[394215851,1763385046755,-151.0,0.00030486,31]
[394215852,1763385046764,-151.0,0.00030486,31]
[394215853,1763385046773,-151.0,0.00030486,31]
[394215854,1763385046782,-154.143643,0.00030486,31]
[394215855,1763385046791,-151.0,0.00030486,31]
[394215856,1763385046800,-151.0,0.00030486,31]
[394215857,1763385046809,-292.372,0.00030486,31]
[394215858,1763385046819,-263.634693,0.00030486,31]
[394215860,1763385046828,-292.372,0.00030486,31]
[394215861,1763385046838,-263.634693,0.00030486,31]
[394215863,1763385046848,-292.372,0.00030486,31]